bitfinex/quotes_SOLUSD_20250822
["timestamp","ask_amount","ask_price","bid_price","bid_amount"]
[1755846270880,5.62227966,183.81,183.8,93.06991715]
[1755846272276,11.06268007,183.81,183.8,0.03]
[1755846272793,5.62227966,183.81,183.8,0.03]
[1755846273488,0.1,183.81,183.8,0.03]
[1755846273683,4.93227966,183.81,183.8,0.03]
[1755846274280,4.93227966,183.81,183.8,13.90991715]
[1755846274490,4.93227966,183.81,183.8,14.59991715]
[1755846274685,0.1,183.81,183.8,14.59991715]
[1755846275178,0.1,183.81,183.8,20.04061355]
[1755846278095,0.1,183.81,183.8,99.84061355]
[1755846278271,0.1,183.81,183.8,94.39991715]
[1755846278475,0.1,183.81,183.8,93.70991715]
[1755846278995,0.1,183.81,183.8,94.39991715]
[1755846279193,0.1,183.81,183.8,99.84061355]
[1755846281999,0.1,183.81,183.8,99.15061355]
[1755846282598,0.1,183.81,183.8,99.84061355]
[1755846282985,0.1,183.81,183.8,99.15061355]
[1755846283185,0.1,183.81,183.8,99.84061355]
[1755846283388,0.1,183.81,183.8,93.70991715]
[1755846283590,0.1,183.81,183.8,99.15061355]
[1755846283793,0.1,183.81,183.8,99.84061355]
[1755846283999,0.1,183.81,183.8,93.70991715]
[1755846284785,0.79,183.81,183.8,93.70991715]
[1755846285280,0.1,183.81,183.8,93.70991715]
[1755846286695,5.62227966,183.81,183.8,93.42559401]
[1755846287095,5.62227966,183.81,183.8,93.70991715]
[1755846288489,5.62227966,183.81,183.8,13.62559401]
[1755846289009,5.62227966,183.81,183.8,0.03]
[1755846291730,4.93227966,183.81,183.8,14.32559401]
[1755846292031,4.93227966,183.81,183.8,13.90991715]
[1755846292194,5.62227966,183.81,183.8,13.90991715]
[1755846293076,5.62227966,183.81,183.8,13.62559401]
[1755846295080,11.06268007,183.81,183.8,13.62559401]
[1755846295495,6.23040041,183.81,183.8,13.62559401]
[1755846295705,11.06268007,183.81,183.8,13.62559401]
[1755846296713,5.62227966,183.81,183.8,13.62559401]
[1755846296889,11.06268007,183.81,183.8,13.62559401]
[1755846298018,0.79,183.81,183.8,13.62559401]
[1755846298197,11.06268007,183.81,183.8,13.62559401]
[1755846298407,4.93227966,183.81,183.8,14.60991715]
[1755846298594,0.1,183.81,183.8,20.05061355]
[1755846298799,0.1,183.81,183.8,94.40991715]
[1755846299208,4.93227966,183.81,183.8,93.70991715]
[1755846300310,5.62227966,183.81,183.8,93.70991715]
[1755846300603,4.93227966,183.81,183.8,94.40991715]
[1755846300921,0.1,183.81,183.8,94.40991715]
[1755846302298,0.1,183.81,183.8,99.85061355]
[1755846303319,0.1,183.81,183.8,104.68289321]
[1755846308833,0.06,183.83,183.81,93.67991715]
[1755846309022,0.06,183.83,183.82,66.07230126]
[1755846309197,0.06,183.83,183.82,66.77230126]
[1755846309731,0.06,183.85,183.84,39.59559401]
[1755846309911,0.06,183.85,183.84,166.43219681]
[1755846310218,0.06,183.85,183.84,167.13219681]
[1755846310428,0.06,183.85,183.84,171.96447581]
[1755846311007,0.06,183.85,183.84,177.40398842]
[1755846311204,0.06,183.85,183.84,172.57170942]
[1755846311908,0.06,183.85,183.84,161.59991715]
[1755846312126,0.06,183.85,183.84,93.39559401]
[1755846312304,5.58227966,183.85,183.84,55.53559401]
[1755846313403,5.58227966,183.85,183.84,13.59559401]
[1755846313805,5.58227966,183.85,183.84,13.87991715]
[1755846314146,5.58227966,183.85,183.8,0.03]
[1755846314319,26.0,183.81,183.75,0.03]
[1755846314626,10.0,183.82,183.75,0.03]
[1755846314627,4.83227966,183.76,183.75,0.03]
[1755846314826,4.83227966,183.79,183.75,0.03]
[1755846315130,8.47814325,183.79,183.75,0.87216157]
[1755846315427,8.47814325,183.79,183.76,0.7]
[1755846315605,4.83227966,183.8,183.75,5.00444123]
[1755846315807,4.83227966,183.8,183.77,0.7]
[1755846316013,4.83227966,183.82,183.77,0.7]
[1755846316221,8.47814325,183.83,183.79,0.28432314]
[1755846316407,4.83227966,183.83,183.79,0.28432314]
[1755846316727,4.83227966,183.83,183.8,14.29559401]
[1755846317077,5.440903,183.84,183.81,0.28432314]
[1755846317078,10.27318266,183.84,183.81,0.28432314]
[1755846317236,4.83227966,183.84,183.83,0.28432314]
[1755846317436,8.88513116,183.84,183.83,0.28432314]
[1755846317641,8.88514853,183.84,183.83,0.28432314]
[1755846318558,4.83227966,183.84,183.83,0.28432314]
[1755846319065,0.06,183.85,183.83,0.28432314]
[1755846319278,4.83227966,183.84,183.83,0.28432314]
[1755846319567,5.36227966,183.84,183.79,42.58]
[1755846319746,4.58316855,183.83,183.8,13.87991715]
[1755846320063,4.83227966,183.81,183.8,13.87991715]
[1755846320561,3.64775538,183.84,183.8,13.59559401]
[1755846320778,4.83227966,183.81,183.8,13.59559401]
[1755846320967,4.83227966,183.81,183.8,13.73775558]
[1755846321157,8.88521685,183.81,183.8,0.14216157]
[1755846321548,4.05293719,183.81,183.8,0.14216157]
[1755846321743,9.087366,183.84,183.81,0.14216157]
[1755846321950,4.83227966,183.82,183.81,0.14216157]
[1755846322148,4.05276404,183.82,183.81,0.14216157]
[1755846322551,4.83227966,183.82,183.81,0.14216157]
[1755846323147,8.88509602,183.82,183.81,0.14216157]
[1755846324542,8.88509602,183.82,183.8,0.28432314]
[1755846324744,4.83227966,183.82,183.8,0.96432314]
[1755846324952,5.96958318,183.84,183.8,13.87991715]
[1755846325256,4.83227966,183.81,183.8,13.87991715]
[1755846328155,4.83227966,183.82,183.8,14.55991715]
[1755846328353,8.47924698,183.84,183.81,0.68]
[1755846328556,4.83227966,183.84,183.83,13.87991715]
[1755846328859,3.70735187,183.85,183.84,0.28432314]
[1755846329052,4.89227966,183.85,183.84,0.28432314]
[1755846329249,0.06,183.85,183.84,14.55991715]
[1755846330155,0.06,183.85,183.84,19.99942976]
[1755846330648,0.06,183.85,183.84,14.55991715]
[1755846331762,0.06,183.85,183.84,19.99942976]
[1755846333767,0.06,183.85,183.84,99.79942976]
[1755846334074,0.06,183.85,183.84,104.63170942]
[1755846334267,0.06,183.85,183.84,99.79942976]
[1755846334463,0.06,183.85,183.84,142.29942976]
[1755846334661,0.04,183.85,183.84,142.29942976]
[1755846335956,0.04,183.85,183.84,136.17991715]
[1755846336155,0.04,183.85,183.84,142.29942976]
[1755846339081,0.04,183.85,183.84,147.13170942]
[1755846339880,0.06,183.88,183.85,79.76]
[1755846340178,0.06,183.88,183.86,56.31991715]
[1755846340386,0.06,183.88,183.86,56.99991715]
[1755846340590,0.06,183.88,183.87,0.68]
[1755846340891,0.06,183.88,183.87,14.55991715]
[1755846341057,0.06,183.88,183.87,19.39219681]
[1755846342074,0.06,183.88,183.87,99.75854226]
[1755846342484,0.06,183.88,183.87,104.59082192]
[1755846346065,0.06,183.88,183.87,238.59082192]
[1755846346562,0.06,183.89,183.88,93.57991715]
[1755846346761,0.06,183.89,183.88,141.47219681]
[1755846347979,0.06,183.89,183.88,146.91052615]
[1755846348187,0.06,183.9,183.89,13.87991715]
[1755846348365,0.06,183.9,183.89,147.87991715]
[1755846348567,0.06,183.9,183.89,153.38219681]
[1755846350065,0.06,183.9,183.89,158.82023041]
[1755846350990,4.83227966,183.96,183.89,188.79531442]
[1755846351191,4.83227966,183.96,183.91,13.87991715]
[1755846351489,4.83227966,183.96,183.9,43.03]
[1755846351490,4.83227966,183.96,183.93,13.87991715]
[1755846351795,0.53,183.96,183.95,13.87991715]
[1755846352098,5.36227966,183.96,183.95,13.87991715]
[1755846352598,5.36227966,183.96,183.95,93.57991715]
[1755846353169,10.19455932,183.96,183.95,93.29559401]
[1755846353592,10.19455932,183.96,183.95,93.57991715]
[1755846353795,15.63052366,183.96,183.95,13.59559401]
[1755846353986,15.63052366,183.96,183.93,13.59559401]
[1755846354193,10.26883505,183.94,183.93,13.59559401]
[1755846354396,10.36883505,183.94,183.93,13.59559401]
[1755846355390,4.93227966,183.94,183.93,13.59559401]
[1755846355597,4.93227966,183.94,183.92,13.87991715]
[1755846355899,4.83227966,183.93,183.92,13.87991715]
[1755846356503,4.93227966,183.93,183.92,13.87991715]
[1755846357999,4.93227966,183.93,183.92,13.73775558]
[1755846358385,0.1,183.93,183.92,13.73775558]
[1755846358585,4.83227966,183.93,183.92,13.73775558]
[1755846358788,4.93227966,183.93,183.92,13.87991715]
[1755846359701,4.93227966,183.93,183.92,0.28432314]
[1755846359893,4.93227966,183.93,183.91,13.73775558]
[1755846360104,31.43658521,183.94,183.84,0.03]
[1755846360105,5.36227966,183.92,183.84,0.03]
[1755846360296,4.83227966,183.85,183.84,0.03]
[1755846360680,4.83227966,183.85,183.84,0.7]
[1755846360880,4.83227966,183.85,183.84,0.98432314]
[1755846361098,42.355459,183.89,183.85,13.59559401]
[1755846361300,4.83227966,183.86,183.85,13.87991715]
[1755846361486,5.36227966,183.86,183.84,0.03]
[1755846361693,4.83227966,183.85,183.84,0.03]
[1755846361882,4.83227966,183.85,183.84,0.17216157]
[1755846362086,4.83227966,183.85,183.84,14.43775558]
[1755846362288,4.83227966,183.85,183.84,14.57991715]
[1755846362732,48.32135245,183.91,183.85,13.87991715]
[1755846362890,48.32135245,183.91,183.87,13.87991715]
[1755846362891,4.83227966,183.88,183.87,13.87991715]
[1755846363090,26.0,183.91,183.9,0.28432314]
[1755846363303,36.26972188,183.91,183.9,0.28432314]
[1755846363518,30.83227966,183.91,183.9,0.28432314]
[1755846364309,36.79972188,183.91,183.9,0.28432314]
[1755846364798,36.79972188,183.91,183.88,13.59559401]
[1755846364995,4.83227966,183.89,183.88,13.87991715]
[1755846366120,5.36227966,183.89,183.88,13.87991715]
[1755846366817,4.83227966,183.89,183.88,13.87991715]
[1755846367007,4.83227966,183.89,183.88,0.28432314]
[1755846369718,10.80031326,183.89,183.88,0.28432314]
[1755846370123,10.80031326,183.89,183.87,0.28432314]
[1755846370334,4.83227966,183.88,183.87,0.28432314]
[1755846370748,5.36227966,183.88,183.87,0.28432314]
[1755846370905,26.53,183.88,183.84,0.03]
[1755846371219,4.83227966,183.85,183.84,0.03]
[1755846371520,4.83227966,183.85,183.84,0.31432314]
[1755846371709,36.87640258,183.88,183.84,0.98432314]
[1755846371912,5.438033,183.88,183.86,0.28432314]
[1755846372104,4.83227966,183.87,183.86,13.87991715]
[1755846372714,4.83227966,183.87,183.86,14.54991715]
[1755846373425,9.0785957,183.9,183.88,0.28432314]
[1755846373723,4.83227966,183.89,183.88,0.28432314]
[1755846374025,45.98744606,183.91,183.88,0.28432314]
[1755846374212,4.83227966,183.89,183.88,0.28432314]
[1755846374398,26.0,183.91,183.88,0.95432314]
[1755846374598,4.83227966,183.89,183.88,14.54991715]
[1755846375026,4.83227966,183.9,183.89,13.59559401]
[1755846375201,4.83227966,183.91,183.9,0.28432314]
[1755846375531,4.83227966,183.91,183.9,14.54991715]
[1755846377422,9.08173516,183.93,183.9,14.54991715]
[1755846377601,3.64481899,183.93,183.9,14.54991715]
[1755846377806,4.83227966,183.91,183.9,14.54991715]
[1755846378139,3.64481899,183.93,183.92,0.28432314]
[1755846378327,8.47709865,183.93,183.92,0.28432314]
[1755846379132,3.64481899,183.93,183.92,0.28432314]
[1755846379310,8.47709865,183.93,183.92,0.28432314]
[1755846379508,3.64481899,183.93,183.92,0.97432314]
[1755846379710,3.70481899,183.94,183.92,14.56991715]
[1755846379910,4.83227966,183.93,183.92,14.56991715]
[1755846380109,4.83227966,183.93,183.92,13.87991715]
[1755846380314,4.89227966,183.93,183.92,13.87991715]
[1755846381031,0.06,183.93,183.92,13.87991715]
[1755846381336,4.89227966,183.93,183.92,13.87991715]
[1755846381715,5.42227966,183.93,183.92,13.87991715]
[1755846382053,10.85913063,183.93,183.92,13.87991715]
[1755846382336,10.38897466,183.93,183.92,13.87991715]
[1755846383128,15.82582563,183.93,183.92,13.87991715]
[1755846383335,16.35582563,183.93,183.92,13.87991715]
[1755846383531,10.91897466,183.93,183.92,13.87991715]
[1755846383838,10.38897466,183.93,183.92,13.87991715]
[1755846385927,15.82582563,183.93,183.92,13.59559401]
[1755846386122,16.35582563,183.93,183.92,13.59559401]
[1755846386318,20.00332183,183.93,183.92,13.59559401]
[1755846386925,20.00332183,183.93,183.89,42.34]
[1755846387126,26.0,183.91,183.9,13.59559401]
[1755846387337,31.36227966,183.91,183.9,13.59559401]
[1755846387539,31.36227966,183.91,183.88,0.28432314]
[1755846387751,4.83227966,183.89,183.88,0.28432314]
[1755846388252,4.83227966,183.89,183.88,14.56991715]
[1755846392835,26.62398826,183.89,183.88,13.87991715]
[1755846393767,5.43753847,183.91,183.89,13.59559401]
[1755846393930,3.64838007,183.91,183.9,14.56991715]
[1755846394129,13.595594,183.91,183.9,0.28432314]
[1755846394357,17.24389732,183.91,183.9,0.28432314]
[1755846394929,22.60617698,183.91,183.88,0.28432314]
[1755846395246,4.83227966,183.89,183.88,0.28432314]
[1755846395430,4.83227966,183.89,183.87,0.28432314]
[1755846395631,4.83227966,183.88,183.87,0.28432314]
[1755846395829,9.08615889,183.9,183.89,13.59559401]
[1755846396065,8.48058298,183.9,183.89,14.56991715]
[1755846396435,3.70830332,183.9,183.89,14.56991715]
[1755846396755,8.54058298,183.9,183.89,14.56991715]
[1755846398056,8.54058298,183.9,183.89,0.28432314]
[1755846398239,8.54058298,183.9,183.89,0.97432314]
[1755846398749,3.71254995,183.9,183.89,14.56991715]
[1755846398950,5.42227966,183.9,183.88,0.03]
[1755846399168,4.83227966,183.89,183.88,0.03]
[1755846399734,4.83227966,183.89,183.88,14.59991715]
[1755846399944,4.89227966,183.9,183.89,0.28432314]
[1755846400138,0.06,183.9,183.89,14.56991715]
[1755846403057,4.89227966,183.9,183.88,0.03]
[1755846403241,4.83227966,183.89,183.88,0.03]
[1755846403449,10.26984366,183.89,183.88,0.03]
[1755846405145,5.437564,183.89,183.88,0.03]
[1755846405345,0.06,183.9,183.89,13.59559401]
[1755846405650,0.06,183.9,183.89,14.56991715]
[1755846405853,0.06,183.9,183.89,56.86991715]
[1755846407161,0.06,183.9,183.89,62.30795075]
[1755846408163,0.06,183.9,183.89,142.10795075]
[1755846408766,0.06,183.9,183.89,136.66991715]
[1755846409663,4.89227966,183.9,183.89,135.83775558]
[1755846409865,4.89227966,183.9,183.89,93.53775558]
[1755846410165,4.89227966,183.9,183.89,135.95991715]
[1755846411068,4.89227966,183.9,183.89,56.01775558]
[1755846411376,9.15190787,183.9,183.88,13.62559401]
[1755846411548,4.83227966,183.89,183.88,13.62559401]
[1755846411872,4.83227966,183.89,183.88,13.90991715]
[1755846412045,4.83227966,183.89,183.88,13.76775558]
[1755846412046,8.48644963,183.89,183.88,13.76775558]
[1755846412362,4.83227966,183.89,183.88,13.76775558]
[1755846412552,4.83227966,183.89,183.88,13.90991715]
[1755846412955,10.80031326,183.89,183.88,13.62559401]
[1755846413160,10.27031326,183.89,183.88,13.62559401]
[1755846413564,4.83227966,183.89,183.88,13.62559401]
[1755846413770,10.27031326,183.89,183.88,13.62559401]
[1755846414171,4.83227966,183.89,183.88,13.62559401]
[1755846417153,4.83227966,183.89,183.88,13.62559401]
[1755846417351,8.48591887,183.89,183.88,13.62559401]
[1755846417855,3.65363921,183.89,183.88,14.60991715]
[1755846418057,0.06,183.9,183.88,14.60991715]
[1755846418260,4.89227966,183.9,183.89,56.55559401]
[1755846420276,0.06,183.9,183.89,62.27795075]
[1755846422159,0.06,183.9,183.89,56.83991715]
[1755846422958,4.89227966,183.9,183.89,56.09991715]
[1755846423676,4.89227966,183.9,183.89,55.95775558]
[1755846423973,4.89227966,183.9,183.89,56.09991715]
[1755846424279,0.06,183.9,183.89,56.79991715]
[1755846424459,4.89227966,183.9,183.89,56.09991715]
[1755846424665,4.89227966,183.9,183.89,56.79991715]
[1755846424868,4.89227966,183.9,183.89,13.87991715]
[1755846425072,4.89227966,183.9,183.89,56.11991715]
[1755846425257,0.06,183.9,183.89,56.81991715]
[1755846425463,4.89227966,183.9,183.89,56.81991715]
[1755846426362,0.06,183.9,183.89,56.81991715]
[1755846426562,4.89227966,183.9,183.89,56.81991715]
[1755846426872,4.89227966,183.9,183.89,56.11991715]
[1755846429465,10.33001756,183.9,183.89,56.11991715]
[1755846429666,10.33001756,183.9,183.89,13.59559401]
[1755846429667,14.51365677,183.9,183.89,13.59559401]
[1755846429867,20.01102877,183.9,183.89,13.59559401]
[1755846430487,26.0,183.89,183.87,0.03]
[1755846430668,17.37938422,183.88,183.86,0.03]
[1755846430872,43.37938422,183.87,183.86,0.03]
[1755846431089,48.81800933,183.87,183.86,0.03]
[1755846431280,49.34800933,183.87,183.86,0.03]
[1755846431676,49.34539292,183.87,183.85,0.03]
[1755846431869,8.48591887,183.86,183.85,0.03]
[1755846432384,8.48591887,183.86,183.85,0.73]
[1755846432774,3.65363921,183.86,183.85,0.73]
[1755846432977,5.557372,183.9,183.87,0.28432314]
[1755846433176,4.83227966,183.88,183.87,0.28432314]
[1755846433763,4.83227966,183.88,183.87,14.57991715]
[1755846435488,3.71195859,183.9,183.87,14.57991715]
[1755846435489,4.83227966,183.89,183.88,13.87991715]
[1755846435672,4.83227966,183.89,183.88,56.83991715]
[1755846436279,0.06,183.9,183.88,56.83991715]
[1755846436473,4.89227966,183.9,183.89,14.29559401]
[1755846437093,0.06,183.9,183.89,14.29559401]
[1755846437305,0.06,183.9,183.89,19.73362761]
[1755846438399,0.06,183.9,183.89,20.01795075]
[1755846439098,0.06,183.9,183.89,104.65023041]
[1755846439782,0.06,183.92,183.9,13.87991715]
[1755846440104,0.06,183.94,183.92,13.87991715]
[1755846440303,4.83227966,184.0,183.95,0.28432314]
[1755846440620,2.179421,183.99,183.98,0.28432314]
[1755846440780,3.65330562,184.02,183.99,14.29559401]
[1755846440975,4.83227966,184.02,184.01,13.87991715]
[1755846441178,4.83227966,184.02,184.01,56.15991715]
[1755846441481,9.08692692,184.04,184.01,56.15991715]
[1755846441682,4.83227966,184.02,184.01,56.15991715]
[1755846442302,4.83227966,184.02,184.01,56.85991715]
[1755846442498,3.65032088,184.05,184.01,56.85991715]
[1755846442702,4.83227966,184.03,184.01,56.15991715]
[1755846443002,0.65,184.05,184.03,0.28432314]
[1755846443003,3.65032088,184.05,184.03,0.28432314]
[1755846443208,5.43330616,184.05,184.04,13.59559401]
[1755846443379,10.26558582,184.05,184.04,13.59559401]
[1755846443708,5.43330616,184.05,184.04,13.59559401]
[1755846443891,10.26558582,184.05,184.04,13.59559401]
[1755846444295,5.43330616,184.05,184.04,13.59559401]
[1755846444485,10.26558582,184.05,184.04,13.59559401]
[1755846445804,10.91558582,184.05,184.04,13.59559401]
[1755846447002,10.26558582,184.05,184.04,13.59559401]
[1755846447310,10.26558582,184.05,183.98,4.83227966]
[1755846447311,26.0,184.02,183.98,0.7]
[1755846447607,5.43360139,184.04,184.01,13.59559401]
[1755846448022,5.43360139,184.04,184.02,0.28432314]
[1755846449001,4.83227966,184.03,184.02,0.28432314]
[1755846449308,5.43360139,184.04,184.02,0.28432314]
[1755846449708,4.83227966,184.04,184.03,0.7]
[1755846449915,5.49340206,184.05,184.04,0.28432314]
[1755846449916,4.89227966,184.05,184.04,0.28432314]
[1755846450213,4.89227966,184.05,184.04,42.66432314]
[1755846450809,4.89227966,184.05,184.04,56.25991715]
[1755846451186,0.06,184.05,184.04,56.25991715]
[1755846451392,4.89227966,184.05,184.04,56.95991715]
[1755846451596,0.06,184.05,184.04,56.95991715]
[1755846453414,0.06,184.05,184.04,141.59219681]
[1755846453614,0.06,184.05,184.04,67.2257982]
[1755846458412,0.06,184.05,184.04,67.1857982]
[1755846458619,0.06,184.05,184.04,62.37351854]
[1755846458918,0.06,184.05,184.04,67.2057982]
[1755846459216,0.06,184.05,184.04,62.37351854]
[1755846459415,0.06,184.05,184.04,142.17351854]
[1755846460218,0.06,184.05,184.04,136.73991715]
[1755846460403,0.06,184.05,184.04,62.37351854]
[1755846460722,0.06,184.05,184.04,56.93991715]
[1755846461118,0.06,184.05,184.04,13.59559401]
[1755846461119,0.71,184.05,184.04,13.59559401]
[1755846461317,4.89227966,184.05,184.04,55.93559401]
[1755846461509,0.06,184.05,184.04,55.93559401]
[1755846461814,0.06,184.05,184.04,56.21991715]
[1755846462193,4.89227966,184.05,184.04,56.21991715]
[1755846462598,4.89227966,184.05,184.04,56.07775558]
[1755846462799,0.06,184.05,184.04,56.77775558]
[1755846463100,0.06,184.05,184.04,67.1857982]
[1755846463810,0.06,184.05,184.04,62.35351854]
[1755846464706,0.06,184.05,184.04,67.1857982]
[1755846465112,0.06,184.05,184.04,62.35351854]
[1755846465417,0.06,184.05,184.04,56.21991715]
[1755846465598,0.06,184.05,184.04,13.87991715]
[1755846465795,4.89227966,184.05,184.04,13.87991715]
[1755846466016,0.06,184.05,184.04,56.21991715]
[1755846466414,0.06,184.05,184.04,136.01991715]
[1755846466609,0.06,184.05,184.04,142.15351854]
[1755846467007,0.06,184.05,184.04,136.71991715]
[1755846467323,0.06,184.05,184.04,136.01991715]
[1755846467823,0.06,184.05,184.04,142.15351854]
[1755846471828,0.06,184.06,184.05,18.71219681]
[1755846472022,0.06,184.06,184.05,19.41219681]
[1755846472407,0.06,184.06,184.05,14.57991715]
[1755846472608,0.06,184.06,184.05,19.41219681]
[1755846473226,0.06,184.06,184.05,20.01322331]
[1755846473618,0.06,184.06,184.05,24.84550297]
[1755846474212,0.06,184.06,184.05,20.01322331]
[1755846474426,0.06,184.06,184.05,24.84550297]
[1755846474828,0.06,184.06,184.05,20.01322331]
[1755846475037,0.06,184.06,184.05,24.84550297]
[1755846475418,0.06,184.06,184.05,20.01322331]
[1755846475628,0.06,184.06,184.05,24.84550297]
[1755846476715,0.06,184.06,184.05,20.01322331]
[1755846476926,0.06,184.06,184.05,24.84550297]
[1755846477141,0.06,184.06,184.05,20.01322331]
[1755846477639,0.06,184.06,184.05,24.84550297]
[1755846478918,0.06,184.06,184.05,20.01322331]
[1755846479119,0.06,184.06,184.05,24.14550297]
[1755846479336,0.06,184.06,184.05,19.02890017]
[1755846479542,0.06,184.06,184.05,61.60890017]
[1755846479919,0.06,184.06,184.05,61.75106174]
[1755846480259,0.06,184.06,184.05,61.60890017]
[1755846480461,0.74,184.06,184.03,19.0293229]
[1755846480661,0.74,184.06,184.05,13.59559401]
[1755846480816,4.89227966,184.06,184.05,13.59559401]
[1755846481240,0.06,184.06,184.05,13.59559401]
[1755846481440,0.06,184.06,184.05,13.73775558]
[1755846481622,0.06,184.06,184.05,13.87991715]
[1755846482029,0.06,184.06,184.05,19.31322331]
[1755846482743,0.06,184.06,184.05,20.01322331]
[1755846483131,0.06,184.06,184.05,19.31322331]
[1755846483517,4.89227966,184.06,184.05,13.87991715]
[1755846483724,0.06,184.06,184.05,82.45991715]
[1755846484541,5.57227966,184.06,184.05,39.59559401]
[1755846484735,5.57227966,184.06,184.05,56.17559401]
[1755846485227,5.57227966,184.06,184.05,56.45991715]
[1755846485544,0.74,184.06,184.05,42.88432314]
[1755846485749,5.57227966,184.06,184.05,42.88432314]
[1755846486231,5.57227966,184.06,184.05,0.28432314]
[1755846486428,5.57227966,184.06,184.05,42.86432314]
[1755846486633,5.57227966,184.06,184.05,56.45991715]
[1755846487517,0.06,184.06,184.05,56.45991715]
[1755846487739,4.89227966,184.06,184.05,61.89322331]
[1755846487930,4.89227966,184.06,184.05,56.45991715]
[1755846488135,4.89227966,184.06,184.05,136.25991715]
[1755846488536,5.57227966,184.06,184.05,56.45991715]
[1755846488841,4.89227966,184.06,184.05,56.45991715]
[1755846489032,0.06,184.06,184.05,56.45991715]
[1755846489233,4.89227966,184.06,184.05,56.45991715]
[1755846490738,4.89227966,184.06,184.05,13.87991715]
[1755846490937,4.89227966,184.06,184.05,56.45991715]
[1755846492536,4.89227966,184.06,184.05,13.87991715]
[1755846492738,4.89227966,184.06,184.05,56.41991715]
[1755846494149,4.89227966,184.06,184.05,136.21991715]
[1755846494669,5.57227966,184.06,184.05,13.87991715]
[1755846494832,11.00529063,184.06,184.05,13.59559401]
[1755846495029,11.00529063,184.06,184.05,56.27775558]
[1755846495229,6.17301097,184.06,184.05,56.27775558]
[1755846495432,11.00529063,184.06,184.05,56.27775558]
[1755846495730,9.66455932,184.06,184.04,42.54]
[1755846495942,26.0,184.06,184.04,13.59559401]
[1755846496165,4.83227966,184.05,184.04,13.59559401]
[1755846496469,0.06,184.07,184.05,0.28432314]
[1755846496765,4.83227966,184.06,184.05,56.41991715]
[1755846498056,0.06,184.07,184.06,13.87991715]
[1755846498259,4.89227966,184.07,184.06,13.87991715]
[1755846498466,10.32499547,184.07,184.06,13.87991715]
[1755846500168,10.35499547,184.07,184.06,13.87991715]
[1755846500568,10.32499547,184.07,184.06,13.87991715]
[1755846501754,5.49271581,184.07,184.06,13.87991715]
[1755846501957,10.32499547,184.07,184.06,13.87991715]
[1755846502461,4.89227966,184.07,184.06,14.58991715]
[1755846502762,4.89227966,184.07,184.06,57.14991715]
[1755846502763,0.06,184.07,184.06,57.14991715]
[1755846503171,4.89227966,184.07,184.06,56.43991715]
[1755846505975,4.89227966,184.07,184.06,136.23991715]
[1755846507992,0.06,184.07,184.06,136.94991715]
[1755846508146,4.89227966,184.07,184.06,136.94991715]
[1755846509077,10.32499547,184.07,184.06,136.23991715]
[1755846509776,4.89227966,184.07,184.06,136.23991715]
[1755846511085,4.89227966,184.07,184.06,136.94991715]
[1755846511653,0.06,184.07,184.06,136.94991715]
[1755846512172,4.89227966,184.07,184.06,136.94991715]
[1755846512676,0.06,184.07,184.06,136.94991715]
[1755846514576,0.06,184.07,184.06,94.38991715]
[1755846514785,0.06,184.07,184.06,136.88991715]
[1755846515078,0.06,184.07,184.06,142.32292812]
[1755846516585,0.06,184.07,184.06,136.88991715]
[1755846516766,0.06,184.07,184.06,142.32292812]
[1755846516971,0.06,184.07,184.06,142.35292812]
[1755846519382,0.06,184.07,184.06,136.91991715]
[1755846521385,0.06,184.07,184.06,142.35292812]
[1755846522488,0.06,184.07,184.06,99.85292812]
[1755846522673,0.06,184.07,184.06,142.31292812]
[1755846524071,0.06,184.07,184.06,147.14520778]
[1755846525189,0.06,184.07,184.06,142.31292812]
[1755846533989,0.06,184.07,184.06,147.14520778]
[1755846534901,0.06,184.07,184.06,142.31292812]
[1755846535084,0.06,184.07,184.06,147.14520778]
[1755846535996,0.06,184.07,184.06,142.31292812]
[1755846536199,0.06,184.07,184.06,147.14520778]
[1755846537008,0.06,184.07,184.06,136.87991715]
[1755846537711,0.06,184.07,184.06,142.31292812]
[1755846538515,0.06,184.07,184.06,147.14520778]
[1755846539080,0.06,184.07,184.06,136.16991715]
[1755846539607,0.06,184.07,184.06,142.26292812]
[1755846539999,0.06,184.07,184.06,136.82991715]
[1755846540612,0.06,184.07,184.06,147.09520778]
[1755846541594,0.06,184.07,184.06,142.26292812]
[1755846541809,0.06,184.07,184.06,147.09520778]
[1755846542487,0.06,184.07,184.06,142.26292812]